{"text_format":"1","workbook":"xlsx","n_sheets":1,"sheets":["問題"],"not_rendered":{"charts":0,"images":0,"macros":1,"external_links":0,"defined_names":3,"comments":0,"pivot_tables":0},"unopened":[],"bounds":{"document_bytes":16777216,"sheet_cells":100000,"rows_first":2000,"rows_last":500,"rows_between":2000,"halvings":0,"cell_chars":16384,"cell_head_chars":4096},"cells_cut":0,"cells_raw":0,"read":"whole","date_system":"1900"}

{"sheet":"問題","index":0,"n_rows":30,"n_cols":256,"rows_kept":30,"cut":false,"hidden":false,"merged":[[6,10,6,12],[6,8,6,9],[4,8,4,10],[5,8,5,9],[5,10,5,12]]}
[null,null,null,null,null,null,null,null,null,null,null,null,null,null,null,null,null,null,null,null,null,null,null,null,null,null,null,null,null,null,null,null,null,null,null,null,null,null,null,null,null,null,null,null,null,null,null,null,null,null,null,null,null,null,null,null,null,null,null,null,null,null,null,null,null,null,null,null,null,null,null,null,null,null,null,null,null,null,null,null,null,null,null,null,null,null,null,null,null,null,null,null,null,null,null,null,null,null,null,null,null,null,null,null,null,null,null,null,null,null,null,null,null,null,null,null,null,null,null,null,null,null,null,null,null,null,null,null,null,null,null,null,null,null,null,null,null,null,null,null,null,null,null,null,null,null,null,null,null,null,null,null,null,null,null,null,null,null,null,null,null,null,null,null,null,null,null,null,null,null,null,null,null,null,null,null,null,null,null,null,null,null,null,null,null,null,null,null,null,null,null,null,null,null,null,null,null,null,null,null,null,null,null,null,null,null,null,null,null,null,null,null,null,null,null,null,null,null,null,null,null,null,null,null,null,null,null,null,null,null,null,null,null,null,null,null,null,null,null,null,null,null,null,null,null,null,null,null,null,null,null,null,null,null,null,"2020-04-23T12:56:21"]
[]
[null,"×",{"$f":"RANK($O3,$O3:$W3)","v":1},{"$f":"RANK($P3,$O3:$W3)","v":3},{"$f":"RANK($Q3,$O3:$W3)","v":6},null,null,null,null,null,null,null,null,null,{"$f":"RAND()","v":0.91023201861668557},0.67799273505010815,0.34856094723319364,0.81854153302933941,5.0068331386047271E-3,0.50259097534187758,0.53007408654611454,0.34604855423227632,0.12954584940115477]
[null,{"$f":"RANK($N4,$N$4:$N$12)","v":3},4,8,5,null,null,null,null,null,null,null,null,{"$f":"RAND()","v":0.81508502874533406},{"$f":"IF(ISBLANK(C4),0,IF(C4=O$15,1,0))","v":0},0,{"$f":"IF(ISBLANK(E4),0,IF(E4=Q$15,1,0))","v":0}]
[null,{"$f":"RANK($N5,$N$4:$N$12)","v":8},null,null,null,null,null,null,"けっか",null,null,null,null,0.2362334517071103,{"$f":"IF(ISBLANK(C5),0,IF(C5=O$16,1,0))","v":0},0,{"$f":"IF(ISBLANK(E5),0,IF(E5=Q$16,1,0))","v":0}]
[null,{"$f":"RANK($N6,$N$4:$N$12)","v":6},null,null,null,null,null,null,"てんすう",null,{"$f":"IF(SUM(O4:Q6)=0,0,SUM(O4:Q6)*11+1)","v":0},null,null,0.28437299436005015,{"$f":"IF(ISBLANK(C6),0,IF(C6=O$17,1,0))","v":0},{"$f":"IF(ISBLANK(D6),0,IF(D6=P$17,1,0))","v":0},{"$f":"IF(ISBLANK(E6),0,IF(E6=Q$17,1,0))","v":0}]
[null,null,null,null,null,null,null,null,"じかん",null,"00:00:00",null,null,0.44118168241357347]
[null,null,null,null,null,null,null,null,null,null,null,null,null,1.1274474221546482E-3]
[null,null,null,null,null,null,null,null,null,null,null,null,null,0.89374156699708707]
[null,null,null,null,null,null,null,null,null,null,null,null,null,0.87259052650629421]
[null,null,null,null,null,null,null,null,null,null,null,null,null,0.25419194043701698]
[null,null,null,null,null,null,null,null,null,null,null,null,null,0.65368215942720898]
[]
[null,null,null,null,null,null,null,null,null,null,null,null,null,null,{"$f":"問題!C3","v":1},{"$f":"問題!D3","v":3},{"$f":"問題!E3","v":6}]
[null,null,null,null,null,null,null,null,null,null,null,null,null,{"$f":"問題!B4","v":3},{"$f":"O14*$N15","v":3},{"$f":"P14*$N15","v":9},{"$f":"Q14*$N15","v":18}]
[null,null,null,null,null,null,null,null,null,null,null,null,null,{"$f":"問題!B5","v":8},{"$f":"O14*$N16","v":8},{"$f":"P14*$N16","v":24},{"$f":"Q14*$N16","v":48}]
[null,null,null,null,null,null,null,null,null,null,null,null,null,{"$f":"問題!B6","v":6},{"$f":"O14*$N17","v":6},{"$f":"P14*$N17","v":18},{"$f":"Q14*$N17","v":36}]
[]
[]
[]
[]
[]
[]
[]
[]
[]
[]
[]
[]
[6,"×",5,5,"×",5,1,"×",5,6,"×",3,5,"×",3,1,"×",3,6,"×",4,5,"×",4,1,"×",4]